fUSD/lending_fUSD_20250513
["ID","MTS","AMOUNT","RATE_DAILY","PERIOD"]
[360982354,1747180233820,-400.0,0.00010958,2]
[360982355,1747180233835,-435.0,0.00010958,2]
[360982356,1747180233848,-400.0,0.00010958,2]
[360982357,1747180233863,-625.73,0.00010958,2]
[360982358,1747180233879,-452.53,0.00010958,2]
[360982359,1747180233893,-400.0,0.00010958,2]
[360982360,1747180233908,-484.87,0.00010958,2]
[360982361,1747180233922,-1068.39579475,0.00010958,2]
[360982362,1747180233941,-247.35420525,0.00010958,2]
[360982363,1747180233956,-1061.39,0.00010958,2]
[360982364,1747180233971,-1029.61,0.00010958,2]
[360982365,1747180233986,-400.0,0.00010958,2]
[360982366,1747180234001,-400.0,0.00010958,2]
[360982367,1747180234015,-400.0,0.00010958,2]
[360982368,1747180234029,-400.0,0.00010958,2]
[360982369,1747180234043,-306.76117395,0.00010958,2]
[360982370,1747180234273,-93.23882605,0.00010958,2]
[360982371,1747180234288,-206.76117395,0.00010958,2]
[360982411,1747180237896,-153.99373972,0.000109,2]
[360982412,1747180237906,-128.56626019,0.00010958,2]
[360982606,1747180239995,-157.9560626,0.000109,2]
[360982608,1747180240005,-173.66710736,0.00010958,2]
[360982610,1747180240014,-400.0,0.00010958,2]
[360982612,1747180240023,-400.0,0.00010958,2]
[360982613,1747180240034,-24.57683004,0.00010958,2]
[360982615,1747180240046,-480.62316996,0.00010958,2]
[360982617,1747180240056,-400.0,0.00010958,2]
[360982619,1747180240066,-400.0,0.00010958,2]
[360982620,1747180240075,-400.0,0.00010958,2]
[360982621,1747180240085,-456.8,0.00010958,2]
[360982622,1747180240094,-400.0,0.00010958,2]
[360982623,1747180240103,-949.81,0.00010958,2]
[360982624,1747180240112,-776.54,0.00010958,2]
[360982625,1747180240121,-400.0,0.00010958,2]
[360982626,1747180240130,-165.55878406,0.00010958,2]
[360982627,1747180240139,-696.54,0.00010958,2]
[360982628,1747180240148,-400.0,0.00010958,2]
[360982629,1747180240157,-400.0,0.00010958,2]
[360982630,1747180240166,-400.0,0.00010958,2]
[360982631,1747180240175,-1980.49,0.00010958,2]
[360982632,1747180240184,-318.95929599,0.00010958,2]
[360982633,1747180240196,-1545.75070401,0.00010958,2]
[360982634,1747180240205,-400.0,0.00010958,2]
[360982635,1747180240214,-1510.26,0.00010958,2]
[360982636,1747180240223,-552.99,0.00010958,2]
[360982637,1747180240233,-400.0,0.00010958,2]
[360982638,1747180240242,-1194.25,0.00010958,2]
[360982639,1747180240252,-400.0,0.00010958,2]
[360982640,1747180240261,-400.0,0.00010958,2]
[360982641,1747180240270,-400.0,0.00010958,2]
[360982642,1747180240279,-1514.54,0.00010958,2]
[360982643,1747180240288,-400.0,0.00010958,2]
[360982644,1747180240298,-400.0,0.00010958,2]
[360982645,1747180240306,-400.0,0.00010958,2]
[360982646,1747180240316,-400.0,0.00010958,2]
[360982647,1747180240325,-400.0,0.00010958,2]
[360982648,1747180240335,-481.72,0.00010958,2]
[360982649,1747180240344,-1177.85,0.00010958,2]
[360982651,1747180240353,-1258.05,0.00010958,2]
[360982652,1747180240362,-400.0,0.00010958,2]
[360982654,1747180240372,-157.51261708,0.00010958,2]
[360982656,1747180240383,-400.40738292,0.00010958,2]
[360982657,1747180240392,-229.58454202,0.00010958,2]
[360982659,1747180240424,-170.41545798,0.00010958,2]
[360982661,1747180240434,-1777.27,0.00010958,2]
[360982663,1747180240443,-791.07,0.00010958,2]
[360982665,1747180240452,-400.0,0.00010958,2]
[360982667,1747180240461,-668.02,0.00010958,2]
[360982669,1747180240470,-1287.76,0.00010958,2]
[360982671,1747180240480,-1302.93,0.00010958,2]
[360982673,1747180240489,-400.0,0.00010958,2]
[360982675,1747180240498,-400.0,0.00010958,2]
[360982677,1747180240507,-400.0,0.00010958,2]
[360982679,1747180240517,-580.87,0.00010958,2]
[360982681,1747180240527,-410.67,0.00010958,2]
[360982683,1747180240536,-400.0,0.00010958,2]
[360982685,1747180240546,-400.0,0.00010958,2]
[360982687,1747180240563,-400.0,0.00010958,2]
[360982689,1747180240572,-400.0,0.00010958,2]
[360982691,1747180240581,-999.26,0.00010958,2]
[360982693,1747180240591,-931.9,0.00010958,2]
[360982695,1747180240602,-400.0,0.00010958,2]
[360982697,1747180240611,-373.28817701,0.00010958,2]
[360982699,1747180240620,-400.0,0.00010958,2]
[360982701,1747180240631,-591.0,0.00010958,2]
[360982703,1747180240642,-400.0,0.00010958,2]
[360982704,1747180240651,-693.14,0.00010958,2]
[360982706,1747180240661,-1234.43,0.00010958,2]
[360982708,1747180240670,-1131.2,0.00010958,2]
[360982710,1747180240679,-2073.53,0.00010958,2]
[360982712,1747180240688,-400.0,0.00010958,2]
[360982714,1747180240697,-400.0,0.00010958,2]
[360982716,1747180240707,-400.0,0.00010958,2]
[360982718,1747180240716,-400.0,0.00010958,2]
[360982720,1747180240725,-400.0,0.00010958,2]
[360982722,1747180240734,-400.0,0.00010958,2]
[360982724,1747180240743,-400.0,0.00010958,2]
[360982726,1747180240753,-400.0,0.00010958,2]
[360982728,1747180240762,-400.0,0.00010958,2]
[360982730,1747180240771,-620.18,0.00010958,2]
[360982732,1747180240780,-400.0,0.00010958,2]
[360982734,1747180240790,-400.0,0.00010958,2]
[360982736,1747180240800,-400.0,0.00010958,2]
[360982738,1747180240809,-573.60751173,0.00010958,2]
[360982740,1747180240821,-16.46248827,0.00010958,2]
[360982742,1747180240831,-400.0,0.00010958,2]
[360982744,1747180240840,-808.7,0.00010958,2]
[360982746,1747180240850,-1858.77,0.00010958,2]
[360982748,1747180240860,-400.0,0.00010958,2]
[360982750,1747180240870,-400.0,0.00010958,2]
[360982752,1747180240883,-400.0,0.00010958,2]
[360982754,1747180240893,-1347.8,0.00010958,2]
[360982756,1747180240902,-400.0,0.00010958,2]
[360982758,1747180240911,-400.0,0.00010958,2]
[360982760,1747180240920,-400.0,0.00010958,2]
[360982762,1747180240930,-521.08,0.00010958,2]
[360982764,1747180240939,-400.0,0.00010958,2]
[360982766,1747180240948,-400.0,0.00010958,2]
[360982768,1747180240958,-400.0,0.00010958,2]
[360982770,1747180240967,-400.0,0.00010958,2]
[360982772,1747180240976,-640.38,0.00010958,2]
[360982774,1747180240985,-400.0,0.00010958,2]
[360982776,1747180240995,-6681.55,0.00010958,2]
[360982778,1747180241005,-400.0,0.00010958,2]
[360982780,1747180241014,-870.84,0.00010958,2]
[360982782,1747180241023,-542.0,0.00010958,2]
[360982784,1747180241032,-1173.1,0.00010958,2]
[360982786,1747180241042,-400.0,0.00010958,2]
[360982788,1747180241051,-400.0,0.00010958,2]
[360982790,1747180241061,-2104.33,0.00010958,2]
[360982792,1747180241070,-343.1,0.00010958,2]
[360982794,1747180241079,-953.93,0.00010958,2]
[360982796,1747180241088,-400.0,0.00010958,2]
[360982798,1747180241098,-400.0,0.00010958,2]
[360982800,1747180241107,-690.58,0.00010958,2]
[360982802,1747180241117,-400.0,0.00010958,2]
[360982804,1747180241126,-400.0,0.00010958,2]
[360982806,1747180241135,-400.0,0.00010958,2]
[360982808,1747180241144,-400.0,0.00010958,2]
[360982810,1747180241154,-400.0,0.00010958,2]
[360982812,1747180241163,-400.0,0.00010958,2]
[360982814,1747180241172,-1226.16,0.00010958,2]
[360982816,1747180241182,-400.0,0.00010958,2]
[360982818,1747180241192,-400.0,0.00010958,2]
[360982820,1747180241201,-1952.76,0.00010958,2]
[360982822,1747180241210,-405.58,0.00010958,2]
[360982824,1747180241220,-400.0,0.00010958,2]
[360982826,1747180241228,-400.0,0.00010958,2]
[360982827,1747180241238,-599.04,0.00010958,2]
[360982829,1747180241247,-2541.36,0.00010958,2]
[360982831,1747180241257,-402.69,0.00010958,2]
[360982833,1747180241267,-563.86,0.00010958,2]
[360982836,1747180241276,-400.0,0.00010958,2]
[360982838,1747180241286,-545.93,0.00010958,2]
[360982839,1747180241295,-400.0,0.00010958,2]
[360982841,1747180241305,-400.0,0.00010958,2]
[360982844,1747180241315,-400.0,0.00010958,2]
[360982846,1747180241325,-1390.39,0.00010958,2]
[360982847,1747180241334,-783.28,0.00010958,2]
[360982849,1747180241344,-757.06,0.00010958,2]
[360982852,1747180241353,-400.0,0.00010958,2]
[360982853,1747180241362,-400.0,0.00010958,2]
[360982855,1747180241372,-400.0,0.00010958,2]
[360982857,1747180241381,-3659.65,0.00010958,2]
[360982860,1747180241390,-400.0,0.00010958,2]
[360982861,1747180241399,-400.0,0.00010958,2]
[360982863,1747180241409,-762.04,0.00010958,2]
[360982865,1747180241419,-531.51,0.00010958,2]
[360982867,1747180241428,-1864.53,0.00010958,2]
[360982869,1747180241438,-400.0,0.00010958,2]
[360982871,1747180241447,-400.0,0.00010958,2]
[360982873,1747180241457,-400.0,0.00010958,2]
[360982875,1747180241467,-400.0,0.00010958,2]
[360982877,1747180241476,-400.0,0.00010958,2]
[360982879,1747180241487,-1263.69,0.00010958,2]
[360982881,1747180241497,-400.0,0.00010958,2]
[360982884,1747180241506,-4795.14,0.00010958,2]
[360982885,1747180241516,-691.67,0.00010958,2]
[360982887,1747180241525,-500.0,0.00010958,2]
[360982890,1747180241535,-400.0,0.00010958,2]
[360982891,1747180241544,-966.47,0.00010958,2]
[360982894,1747180241557,-400.0,0.00010958,2]
[360982895,1747180241566,-400.0,0.00010958,2]
[360982897,1747180241575,-400.0,0.00010958,2]
[360982899,1747180241585,-531.59,0.00010958,2]
[360982901,1747180241594,-426.74,0.00010958,2]
[360982903,1747180241604,-587.69,0.00010958,2]
[360982905,1747180241614,-529.76,0.00010958,2]
[360982907,1747180241623,-716.82,0.00010958,2]
[360982909,1747180241634,-405.34,0.00010958,2]
[360982911,1747180241645,-400.0,0.00010958,2]
[360982913,1747180241655,-400.0,0.00010958,2]
[360982916,1747180241664,-557.06,0.00010958,2]
[360982918,1747180241674,-473.66,0.00010958,2]
[360982919,1747180241684,-564.33,0.00010958,2]
[360982922,1747180241694,-400.0,0.00010958,2]
[360982923,1747180241703,-400.0,0.00010958,2]
[360982925,1747180241713,-400.0,0.00010958,2]
[360982927,1747180241723,-400.0,0.00010958,2]
[360982930,1747180241733,-400.0,0.00010958,2]
[360982932,1747180241743,-891.0,0.00010959,2]
[360982934,1747180241753,-150.0,0.00010959,2]
[360982935,1747180241762,-400.0,0.00010959,2]
[360982937,1747180241771,-400.0,0.00010959,2]
[360982940,1747180241782,-400.0,0.00010959,2]
[360982942,1747180241791,-400.0,0.00010959,2]
[360982944,1747180241801,-400.0,0.00010959,2]
[360982945,1747180241812,-400.0,0.00010959,2]
[360982948,1747180241822,-400.0,0.00010959,2]
[360982949,1747180241832,-295.47500337,0.00010959,2]
[360982952,1747180241843,-431.42,0.00010959,2]
[360982953,1747180241853,-574.08,0.00010959,2]
[360982955,1747180241862,-525.64,0.00010959,2]
[360982957,1747180241871,-400.0,0.00010959,2]
[360982959,1747180241881,-400.0,0.00010959,2]
[360982961,1747180241891,-400.0,0.00010959,2]
[360982963,1747180241900,-400.0,0.00010959,2]
[360982965,1747180241910,-687.97,0.00010959,2]
[360982967,1747180241919,-400.0,0.00010959,2]
[360982969,1747180241929,-400.0,0.00010959,2]
[360982971,1747180241938,-400.0,0.00010959,2]
[360982973,1747180241947,-400.0,0.00010959,2]
[360982975,1747180241957,-400.0,0.00010959,2]
[360982977,1747180241966,-400.0,0.00010959,2]
[360982979,1747180241976,-400.0,0.00010959,2]
[360982981,1747180241985,-400.0,0.00010959,2]
[360982983,1747180241995,-400.0,0.00010959,2]
[360982985,1747180242004,-436.81,0.00010959,2]
[360982987,1747180242013,-400.0,0.00010959,2]
[360982989,1747180242023,-400.0,0.00010959,2]
[360982991,1747180242032,-372.59670099,0.00010959,2]
[360982993,1747180242042,-400.0,0.00010959,2]
[360982995,1747180242052,-734.09,0.00010959,2]
[360982997,1747180242061,-400.0,0.00010959,2]
[360982999,1747180242070,-400.0,0.00010959,2]
[360983001,1747180242080,-400.0,0.00010959,2]
[360983003,1747180242091,-504.93,0.00010959,2]
[360983005,1747180242100,-400.0,0.00010959,2]
[360983007,1747180242109,-400.0,0.00010959,2]
[360983009,1747180242119,-400.0,0.00010959,2]
[360983011,1747180242128,-409.64,0.00010959,2]
[360983013,1747180242139,-814.67,0.00010959,2]
[360983015,1747180242149,-400.0,0.00010959,2]
[360983018,1747180242159,-400.0,0.00010959,2]
[360983020,1747180242169,-400.0,0.00010959,2]
[360983021,1747180242179,-400.0,0.00010959,2]
[360983023,1747180242188,-178.76685919,0.00010959,2]
[360983046,1747180242394,-381.44,0.00010959,2]
[360983048,1747180242405,-400.0,0.00010959,2]
[360983050,1747180242415,-400.0,0.00010959,2]
[360983052,1747180242424,-469.71,0.00010959,2]
[360983054,1747180242434,-400.0,0.00010959,2]
[360983056,1747180242444,-400.0,0.00010959,2]
[360983058,1747180242453,-400.0,0.00010959,2]
[360983060,1747180242462,-400.0,0.00010959,2]
[360983062,1747180242471,-961.76,0.00010959,2]
[360983064,1747180242480,-502.89,0.00010959,2]
[360983066,1747180242489,-400.0,0.00010959,2]
[360983067,1747180242498,-634.0,0.00010959,2]
[360983069,1747180242507,-400.0,0.00010959,2]
[360983071,1747180242516,-400.0,0.00010959,2]
[360983073,1747180242526,-400.0,0.00010959,2]
[360983075,1747180242536,-400.0,0.00010959,2]
[360983077,1747180242546,-400.0,0.00010959,2]
[360983079,1747180242559,-400.0,0.00010959,2]
[360983081,1747180242567,-400.0,0.00010959,2]
[360983083,1747180242577,-400.0,0.00010959,2]
[360983085,1747180242587,-400.0,0.00010959,2]
[360983087,1747180242596,-531.5,0.00010959,2]
[360983089,1747180242605,-400.0,0.00010959,2]
[360983091,1747180242615,-400.0,0.00010959,2]
[360983093,1747180242624,-400.0,0.00010959,2]
[360983095,1747180242633,-400.0,0.00010959,2]
[360983097,1747180242643,-400.0,0.00010959,2]
[360983099,1747180242652,-400.0,0.00010959,2]
[360983101,1747180242662,-400.0,0.00010959,2]
[360983103,1747180242671,-423.63,0.00010959,2]
[360983105,1747180242680,-400.0,0.00010959,2]
[360983107,1747180242689,-400.0,0.00010959,2]
[360983109,1747180242699,-903.19,0.00010959,2]
[360983111,1747180242708,-952.62,0.00010959,2]
[360983112,1747180242718,-400.0,0.00010959,2]
[360983113,1747180242727,-400.0,0.00010959,2]
[360983114,1747180242736,-285.52244056,0.00010959,2]
[360983115,1747180242746,-400.0,0.00010959,2]
[360983116,1747180242756,-667.19,0.00010959,2]
[360983117,1747180242766,-488.19,0.00010959,2]
[360983118,1747180242776,-400.0,0.00010959,2]
[360983119,1747180242785,-400.0,0.00010959,2]
[360983120,1747180242794,-400.0,0.00010959,2]
[360983121,1747180242804,-400.0,0.00010959,2]
[360983122,1747180242813,-400.0,0.00010959,2]
[360983123,1747180242822,-400.0,0.00010959,2]
[360983124,1747180242832,-413.76,0.00010959,2]
[360983125,1747180242842,-413.74,0.00010959,2]
[360983126,1747180242852,-400.83,0.00010959,2]
[360983127,1747180242862,-400.0,0.00010959,2]
[360983128,1747180242871,-400.0,0.00010959,2]
[360983129,1747180242880,-951.23,0.00010959,2]
[360983130,1747180242889,-1035.66,0.00010959,2]
[360983132,1747180242899,-400.0,0.00010959,2]
[360983133,1747180242908,-400.0,0.00010959,2]
[360983134,1747180242917,-1550.36,0.00010959,2]
[360983135,1747180242927,-400.0,0.00010959,2]
[360983136,1747180242936,-400.0,0.00010959,2]
[360983137,1747180242945,-400.0,0.00010959,2]
[360983138,1747180242955,-400.0,0.00010959,2]
[360983139,1747180242964,-400.0,0.00010959,2]
[360983140,1747180242973,-323.84655926,0.00010959,2]
[360983141,1747180242982,-481.35,0.00010959,2]
[360983142,1747180242992,-400.0,0.00010959,2]
[360983143,1747180243001,-670.51,0.00010959,2]
[360983144,1747180243010,-939.59,0.00010959,2]
[360983145,1747180243021,-400.0,0.00010959,2]
[360983146,1747180243032,-400.0,0.00010959,2]
[360983147,1747180243041,-864.16,0.00010959,2]
[360983148,1747180243051,-400.0,0.00010959,2]
[360983149,1747180243061,-400.0,0.00010959,2]
[360983150,1747180243070,-695.48,0.00010959,2]
[360983151,1747180243079,-400.0,0.00010959,2]
[360983152,1747180243089,-400.0,0.00010959,2]
[360983153,1747180243098,-440.51,0.00010959,2]
[360983154,1747180243108,-400.0,0.00010959,2]
[360983155,1747180243117,-400.0,0.00010959,2]
[360983156,1747180243126,-400.0,0.00010959,2]
[360983158,1747180243135,-400.0,0.00010959,2]
[360983159,1747180243145,-400.0,0.00010959,2]
[360983160,1747180243154,-400.0,0.00010959,2]
[360983161,1747180243163,-534.49,0.00010959,2]
[360983162,1747180243172,-400.0,0.00010959,2]
[360983163,1747180243182,-400.0,0.00010959,2]
[360983164,1747180243192,-990.81,0.00010959,2]
[360983165,1747180243202,-469.26,0.00010959,2]
[360983166,1747180243211,-400.0,0.00010959,2]
[360983167,1747180243220,-400.0,0.00010959,2]
[360983168,1747180243230,-984.74,0.00010959,2]
[360983169,1747180243240,-400.0,0.00010959,2]
[360983170,1747180243249,-400.0,0.00010959,2]
[360983171,1747180243258,-400.0,0.00010959,2]
[360983172,1747180243269,-400.0,0.00010959,2]
[360983173,1747180243278,-763.5,0.00010959,2]
[360983174,1747180243288,-400.0,0.00010959,2]
[360983175,1747180243297,-563.84,0.00010959,2]
[360983176,1747180243307,-658.56,0.00010959,2]
[360983177,1747180243316,-400.0,0.00010959,2]
[360983178,1747180243325,-400.0,0.00010959,2]
[360983179,1747180243335,-417.11,0.00010959,2]
[360983180,1747180243346,-915.87,0.00010959,2]
[360983181,1747180243355,-996.7,0.00010959,2]
[360983182,1747180243365,-400.0,0.00010959,2]
[360983183,1747180243375,-1468.37,0.00010959,2]
[360983184,1747180243386,-400.0,0.00010959,2]
[360983185,1747180243395,-504.86388255,0.00010959,2]
[360983186,1747180243405,-400.0,0.00010959,2]
[360983187,1747180243414,-643.2,0.00010959,2]
[360983188,1747180243424,-175.83556446,0.00010959,2]
[360983189,1747180243433,-400.0,0.00010959,2]
[360983190,1747180243442,-568.3,0.00010959,2]
[360983191,1747180243451,-749.43,0.00010959,2]
[360983192,1747180243460,-1317.13,0.00010959,2]
[360983193,1747180243470,-2000.0,0.00010959,2]
[360983194,1747180243479,-529.88,0.00010959,2]
[360983195,1747180243488,-400.0,0.00010959,2]
[360983196,1747180243497,-493.36,0.00010959,2]
[360983197,1747180243508,-1572.6,0.00010959,2]
[360983198,1747180243517,-404.13,0.00010959,2]
[360983199,1747180243527,-400.0,0.00010959,2]
[360983200,1747180243538,-958.91,0.00010959,2]
[360983201,1747180243548,-671.83,0.00010959,2]
[360983202,1747180243561,-400.0,0.00010959,2]
[360983203,1747180243570,-437.47,0.00010959,2]
[360983204,1747180243579,-400.0,0.00010959,2]
[360983205,1747180243588,-400.0,0.00010959,2]
[360983206,1747180243599,-1164.04,0.00010959,2]
[360983207,1747180243608,-400.0,0.00010959,2]
[360983208,1747180243617,-484.53,0.00010959,2]
[360983209,1747180243627,-1327.09,0.00010959,2]
[360983210,1747180243636,-400.0,0.00010959,2]
[360983211,1747180243646,-434.35,0.00010959,2]
[360983212,1747180243655,-400.0,0.00010959,2]
[360983213,1747180243664,-400.0,0.00010959,2]
[360983214,1747180243673,-400.0,0.00010959,2]
[360983215,1747180243683,-938.3,0.00010959,2]
[360983216,1747180243692,-400.0,0.00010959,2]
[360983217,1747180243702,-400.0,0.00010959,2]
[360983218,1747180243711,-810.61,0.00010959,2]
[360983219,1747180243720,-400.0,0.00010959,2]
[360983220,1747180243730,-1129.7,0.00010959,2]
[360983221,1747180243740,-400.0,0.00010959,2]
[360983222,1747180243749,-400.0,0.00010959,2]
[360983223,1747180243763,-400.0,0.00010959,2]
[360983224,1747180243772,-400.0,0.00010959,2]
[360983225,1747180243782,-400.0,0.00010959,2]
[360983226,1747180243792,-512.91,0.00010959,2]
[360983227,1747180243803,-400.0,0.00010959,2]
[360983228,1747180243812,-1105.16,0.00010959,2]
[360983229,1747180243823,-400.0,0.00010959,2]
[360983230,1747180243832,-400.0,0.00010959,2]
[360983231,1747180243842,-400.0,0.00010959,2]
[360983232,1747180243852,-406.42,0.00010959,2]
[360983233,1747180243861,-400.0,0.00010959,2]
[360983234,1747180243871,-432.94,0.00010959,2]
[360983235,1747180243880,-400.0,0.00010959,2]
[360983236,1747180243890,-400.0,0.00010959,2]
[360983237,1747180243900,-400.0,0.00010959,2]
[360983238,1747180243909,-400.0,0.00010959,2]
[360983239,1747180243919,-674.71,0.00010959,2]
[360983240,1747180243928,-400.0,0.00010959,2]
[360983241,1747180243938,-400.0,0.00010959,2]
[360983242,1747180243947,-400.0,0.00010959,2]
[360983243,1747180243956,-400.0,0.00010959,2]
[360983244,1747180243966,-400.0,0.00010959,2]
[360983245,1747180243975,-400.0,0.00010959,2]
[360983246,1747180243984,-586.24,0.00010959,2]
[360983247,1747180243994,-536.61,0.00010959,2]
[360983248,1747180244003,-533.48,0.00010959,2]
[360983249,1747180244013,-400.0,0.00010959,2]
[360983250,1747180244022,-401.50178895,0.00010959,2]
[360983251,1747180244032,-400.0,0.00010959,2]
[360983252,1747180244041,-400.0,0.00010959,2]
[360983253,1747180244051,-401.06436104,0.00010959,2]
[360983254,1747180244060,-406.21688228,0.00010959,2]
[360983255,1747180244070,-1696.44,0.00010959,2]
[360983256,1747180244079,-400.0,0.00010959,2]
[360983257,1747180244089,-400.0,0.00010959,2]
[360983258,1747180244099,-400.0,0.00010959,2]
[360983259,1747180244109,-400.0,0.00010959,2]
[360983260,1747180244119,-1526.94,0.00010959,2]
[360983261,1747180244128,-400.0,0.00010959,2]
[360983262,1747180244138,-400.0,0.00010959,2]
[360983263,1747180244147,-400.0,0.00010959,2]
[360983264,1747180244157,-400.0,0.00010959,2]
[360983265,1747180244166,-3903.7,0.00010959,2]
[360983266,1747180244175,-400.0,0.00010959,2]
[360983267,1747180244185,-400.0,0.00010959,2]
[360983268,1747180244194,-400.0,0.00010959,2]
[360983269,1747180244204,-400.0,0.00010959,2]
[360983270,1747180244214,-400.0,0.00010959,2]
[360983271,1747180244223,-400.0,0.00010959,2]
[360983272,1747180244233,-400.0,0.00010959,2]
[360983273,1747180244242,-401.4296863,0.00010959,2]
[360983274,1747180244252,-400.0,0.00010959,2]
[360983275,1747180244262,-400.0,0.00010959,2]
[360983276,1747180244271,-975.19,0.00010959,2]
[360983277,1747180244280,-1823.19,0.00010959,2]
[360983278,1747180244290,-400.0,0.00010959,2]
[360983279,1747180244300,-400.0,0.00010959,2]
[360983280,1747180244310,-400.0,0.00010959,2]
[360983281,1747180244319,-589.19,0.00010959,2]
[360983282,1747180244329,-404.65,0.00010959,2]
[360983283,1747180244339,-1032.33,0.00010959,2]
[360983284,1747180244348,-400.0,0.00010959,2]
[360983285,1747180244357,-576.0,0.00010959,2]
[360983286,1747180244367,-945.43,0.00010959,2]
[360983287,1747180244376,-400.0,0.00010959,2]
[360983288,1747180244386,-1586.29,0.00010959,2]
[360983289,1747180244395,-592.71,0.00010959,2]
[360983290,1747180244404,-400.0,0.00010959,2]
[360983291,1747180244414,-616.77,0.00010959,2]
[360983292,1747180244423,-611.1,0.00010959,2]
[360983293,1747180244433,-1176.67,0.00010959,2]
[360983294,1747180244443,-400.0,0.00010959,2]
[360983295,1747180244452,-707.09,0.00010959,2]
[360983296,1747180244462,-400.0,0.00010959,2]
[360983297,1747180244472,-500.0,0.00010959,2]
[360983298,1747180244481,-900.72,0.00010959,2]
[360983299,1747180244491,-1732.78,0.00010959,2]
[360983300,1747180244501,-400.0,0.00010959,2]
[360983301,1747180244510,-400.0,0.00010959,2]
[360983303,1747180244520,-400.0,0.00010959,2]
[360983304,1747180244529,-400.0,0.00010959,2]
[360983306,1747180244539,-448.79,0.00010959,2]
[360983308,1747180244550,-1476.3,0.00010959,2]
[360983310,1747180244562,-461.67,0.00010959,2]
[360983312,1747180244572,-400.0,0.00010959,2]
[360983313,1747180244582,-1160.18,0.00010959,2]
[360983314,1747180244592,-400.0,0.00010959,2]
[360983315,1747180244602,-1722.81,0.00010969,2]
[360983316,1747180244612,-189.85931161,0.00010969,2]
[360983317,1747180244622,-400.0,0.00010972,2]
[360983318,1747180244633,-400.0,0.00010972,2]
[360983319,1747180244643,-400.0,0.00010972,2]
[360983320,1747180244652,-400.0,0.00010972,2]
[360983321,1747180244662,-400.0,0.00010972,2]
[360983322,1747180244671,-400.0,0.00010972,2]
[360983323,1747180244681,-400.0,0.00010972,2]
[360983324,1747180244690,-400.0,0.00010972,2]
[360983325,1747180244700,-400.0,0.00010972,2]
[360983326,1747180244710,-400.0,0.00010972,2]
[360983327,1747180244720,-500.0,0.00010973,2]
[360983328,1747180244730,-503.82522634,0.00010973,2]
[360983329,1747180244739,-524.29936154,0.00010973,2]
[360983330,1747180244749,-500.0,0.00010973,2]
[360983331,1747180244759,-500.0,0.00010973,2]
[360983332,1747180244768,-500.0,0.00010973,2]
[360983333,1747180244778,-501.04190365,0.00010973,2]
[360983334,1747180244788,-500.0,0.00010973,2]
[360983335,1747180244798,-500.0,0.00010973,2]
[360983336,1747180244808,-500.0,0.00010973,2]
[360983337,1747180244819,-500.0,0.00010973,2]